bitfinex/quotes_SOLUSD_20250805
["timestamp","ask_amount","ask_price","bid_price","bid_amount"]
[1754414957600,7.81336847,164.62,164.59,0.71]
[1754414957813,0.03,164.62,164.6,0.71]
[1754414957991,7.81336847,164.62,164.59,0.71]
[1754414958180,7.81336847,164.62,164.58,42.82]
[1754414958388,7.81336847,164.62,164.59,6.07570326]
[1754414958581,0.03,164.62,164.59,6.78570326]
[1754414958889,0.03,164.62,164.6,0.71]
[1754414959912,0.03,164.62,164.61,0.71]
[1754414960126,0.03,164.62,164.61,43.53]
[1754414960316,0.03,164.62,164.61,42.82]
[1754414960518,0.73,164.62,164.61,42.82]
[1754414960899,0.03,164.62,164.61,42.82]
[1754414962321,0.03,164.62,164.61,49.60496506]
[1754414963198,0.03,164.62,164.61,43.53]
[1754414963825,0.03,164.62,164.61,42.82]
[1754414964918,8.79769161,164.62,164.57,0.77]
[1754414965108,8.79769161,164.62,164.57,0.06]
[1754414965109,6.07533414,164.6,164.57,0.06]
[1754414965308,4.09207072,164.6,164.57,0.77]
[1754414965495,7.78336847,164.6,164.58,0.71]
[1754414965702,7.78336847,164.6,164.57,0.06]
[1754414966016,8.48336847,164.59,164.57,0.06]
[1754414966209,7.78336847,164.58,164.57,0.06]
[1754414966410,7.78336847,164.59,164.57,0.06]
[1754414967243,8.48336847,164.59,164.57,0.06]
[1754414967399,6.07540548,164.6,164.57,0.77]
[1754414967400,7.78336847,164.6,164.57,0.77]
[1754414967600,7.78336847,164.58,164.57,0.06]
[1754414968048,0.7,164.59,164.57,0.06]
[1754414968507,7.78336847,164.58,164.57,0.06]
[1754414969026,4.09220918,164.61,164.58,6.07607242]
[1754414969200,4.12220918,164.62,164.59,43.57]
[1754414969402,0.03,164.62,164.6,0.71]
[1754414970004,0.03,164.62,164.59,42.86]
[1754414970403,0.73,164.62,164.59,42.86]
[1754414970648,0.03,164.62,164.59,43.57]
[1754414971234,0.03,164.62,164.59,49.64564989]
[1754414971422,0.03,164.62,164.6,0.71]
[1754414972833,0.03,164.62,164.6,6.78498154]
[1754414973398,0.03,164.62,164.6,14.56835001]
[1754414973798,0.03,164.62,164.6,6.78498154]
[1754414974029,0.03,164.62,164.6,14.56835001]
[1754414974505,0.03,164.62,164.6,13.85835001]
[1754414974836,0.03,164.62,164.61,0.67]
[1754414975209,0.03,164.62,164.61,8.45336847]
[1754414976910,0.03,164.62,164.61,14.52833353]
[1754414978206,0.03,164.62,164.61,6.07496506]
[1754414978822,0.03,164.62,164.6,6.07533414]
[1754414979515,0.03,164.62,164.6,14.52870261]
[1754414980041,0.03,164.62,164.6,13.85870261]
[1754414980809,0.03,164.62,164.58,0.67]
[1754414981146,8.47336847,164.62,164.59,42.82]
[1754414982109,7.81336847,164.62,164.59,42.82]
[1754414982310,8.44336847,164.61,164.59,42.82]
[1754414983273,26.0,164.58,164.57,0.06]
[1754414983426,38.1639406,164.58,164.57,0.06]
[1754414983627,38.8239406,164.58,164.57,0.06]
[1754414985259,44.90001302,164.58,164.57,0.06]
[1754414985642,40.80376403,164.58,164.57,0.06]
[1754414985826,44.89761174,164.58,164.57,0.06]
[1754414988222,75.19400837,164.58,164.55,0.06]
[1754414988427,8.06769161,164.56,164.55,0.06]
[1754414988650,12.16153932,164.56,164.55,0.06]
[1754414988850,12.82153932,164.56,164.55,0.06]
[1754414989737,18.8983502,164.56,164.55,0.06]
[1754414990168,11.11498173,164.56,164.55,0.06]
[1754414990365,18.8983502,164.56,164.55,0.06]
[1754414991280,12.16153932,164.56,164.55,0.06]
[1754414991451,8.06769161,164.56,164.55,0.06]
[1754414991775,0.28432314,164.56,164.55,0.06]
[1754414991973,8.06769161,164.56,164.55,0.06]
[1754414992765,14.14450249,164.56,164.55,0.06]
[1754414992970,18.88941624,164.56,164.55,0.06]
[1754414993957,0.28432314,164.56,164.55,0.06]
[1754414994175,14.14450249,164.56,164.55,0.06]
[1754414994486,14.66234092,164.56,164.55,0.06]
[1754414994784,18.88772036,164.56,164.55,0.06]
[1754414995867,22.05780432,164.56,164.55,0.06]
[1754414997285,17.31458645,164.56,164.55,0.06]
[1754414997649,17.97458645,164.56,164.55,0.06]
[1754414997975,17.31458645,164.56,164.55,0.06]
[1754414998155,17.97458645,164.56,164.55,0.06]
[1754414999484,43.31458645,164.56,164.55,0.06]
[1754415000262,43.31458645,164.56,164.52,0.06]
[1754415000263,26.0,164.53,164.52,0.06]
[1754415000460,26.0,164.53,164.47,0.06]
[1754415000461,0.28432314,164.52,164.47,0.06]
[1754415000678,8.06769161,164.48,164.47,0.06]
[1754415001269,26.0,164.49,164.47,0.73]
[1754415001470,7.78336847,164.48,164.47,0.73]
[1754415001780,32.88229106,164.56,164.47,0.73]
[1754415001975,7.78336847,164.52,164.47,14.59350466]
[1754415002289,7.78336847,164.51,164.48,0.67]
[1754415002491,7.78336847,164.51,164.48,6.74939881]
[1754415002696,7.78336847,164.51,164.48,6.07939881]
[1754415002893,7.78336847,164.49,164.47,0.06]
[1754415003084,34.06769161,164.48,164.47,0.06]
[1754415003901,7.78336847,164.48,164.47,0.78]
[1754415004186,7.78336847,164.53,164.47,14.64340178]
[1754415004374,7.78336847,164.53,164.48,8.50336847]
[1754415004566,33.78336847,164.54,164.49,6.79939692]
[1754415004893,7.78336847,164.53,164.5,0.72]
[1754415005094,7.78336847,164.53,164.49,13.86276539]
[1754415005095,0.03,164.52,164.49,13.86276539]
[1754415005386,0.03,164.52,164.51,0.72]
[1754415007086,7.81336847,164.52,164.48,14.58301849]
[1754415007395,0.03,164.52,164.49,0.72]
[1754415007590,0.03,164.52,164.48,13.86301849]
[1754415007782,0.03,164.52,164.5,0.72]
[1754415008181,0.03,164.52,164.51,0.72]
[1754415009571,0.03,164.52,164.51,6.79865783]
[1754415010509,0.03,164.52,164.51,14.5820263]
[1754415011469,0.03,164.52,164.51,29.68824187]
[1754415011673,0.03,164.52,164.51,29.83040344]
[1754415012605,0.03,164.54,164.52,15.24837714]
[1754415012814,0.03,164.54,164.53,65.91174561]
[1754415012991,3.16887704,164.61,164.54,15.24837714]
[1754415013191,0.03,164.62,164.59,7.78336847]
[1754415013609,0.03,164.62,164.6,0.72]
[1754415014499,0.03,164.62,164.6,6.79525795]
[1754415015098,0.03,164.62,164.6,6.07525795]
[1754415015299,0.03,164.62,164.61,0.72]
[1754415015502,0.03,164.62,164.61,8.50336847]
[1754415015914,0.03,164.62,164.61,7.78336847]
[1754415016256,0.03,164.62,164.61,8.50336847]
[1754415016509,0.03,164.62,164.61,14.57833353]
[1754415019792,0.03,164.62,164.61,57.41833353]
[1754415021512,0.03,164.62,164.61,72.66671067]
[1754415021714,1e-08,164.62,164.61,72.66671067]
[1754415022159,0.1,164.69,164.62,15.24837714]
[1754415022320,0.1,164.69,164.68,7.78336847]
[1754415022942,0.79,164.69,164.67,42.84]
[1754415023144,0.1,164.69,164.67,42.84]
[1754415023333,0.69,164.68,164.67,42.84]
[1754415024332,0.69,164.68,164.64,42.84]
[1754415024531,7.78336847,164.68,164.64,42.84]
[1754415024734,0.38432314,164.69,164.65,7.78336847]
[1754415025041,0.38432314,164.69,164.66,7.78336847]
[1754415025240,0.38432314,164.69,164.66,8.50336847]
[1754415025443,0.1,164.69,164.67,8.50336847]
[1754415026030,0.1,164.69,164.67,13.85610124]
[1754415026223,7.88336847,164.69,164.65,13.85675268]
[1754415026428,0.69,164.68,164.64,56.69718002]
[1754415026643,0.69,164.68,164.65,7.78336847]
[1754415027166,0.03,164.68,164.67,7.78336847]
[1754415027533,0.72,164.68,164.65,89.1]
[1754415027750,0.69,164.67,164.65,89.1]
[1754415030240,13.88575647,164.68,164.65,89.1]
[1754415030241,0.03,164.68,164.65,96.88336847]
[1754415030464,0.03,164.68,164.65,103.6766319]
[1754415030769,0.03,164.68,164.65,14.5766319]
[1754415030935,0.72,164.68,164.65,13.8566319]
[1754415031291,0.72,164.68,164.65,6.07326343]
[1754415031565,0.03,164.68,164.65,6.07326343]
[1754415032270,0.72,164.68,164.65,6.07326343]
[1754415032491,0.03,164.68,164.64,48.91377978]
[1754415032657,7.81336847,164.68,164.64,56.69714825]
[1754415032846,0.03,164.68,164.65,0.72]
[1754415034571,0.03,164.68,164.65,6.79334926]
[1754415035075,0.72,164.68,164.65,6.07334926]
[1754415035287,0.03,164.68,164.65,6.73334926]
[1754415038089,0.03,164.68,164.66,8.44336847]
[1754415038251,0.03,164.68,164.67,50.58336847]
[1754415038455,0.03,164.68,164.67,43.46]
[1754415039655,0.03,164.68,164.67,57.31612003]
[1754415040771,0.03,164.68,164.67,49.53275156]
[1754415041077,0.03,164.68,164.67,57.31612003]
[1754415042083,0.03,164.68,164.67,42.8]
[1754415043404,0.03,164.68,164.67,49.53275156]
[1754415043885,0.03,164.68,164.67,42.8]
[1754415044265,0.03,164.68,164.67,43.46]
[1754415044701,0.03,164.68,164.67,42.8]
[1754415047170,0.03,164.68,164.67,48.87275156]
[1754415047370,0.03,164.68,164.67,49.53275156]
[1754415048195,0.03,164.68,164.67,43.46]
[1754415049786,0.03,164.68,164.67,42.8]
[1754415054571,0.31432314,164.68,164.67,42.8]
[1754415054778,0.31432314,164.68,164.65,14.51661657]
[1754415055092,0.31432314,164.68,164.66,43.46]
[1754415056172,0.31432314,164.68,164.66,42.8]
[1754415056999,0.31432314,164.68,164.67,42.8]
[1754415057293,0.03,164.68,164.67,42.8]
[1754415059784,0.03,164.68,164.67,48.87275156]
[1754415059974,0.03,164.68,164.67,146.41612003]
[1754415060609,0.1,164.69,164.67,146.41612003]
[1754415060785,11.18590171,164.79,164.68,8.44336847]
[1754415060786,4.77723943,164.77,164.68,8.44336847]
[1754415061118,4.08723943,164.77,164.73,7.78336847]
[1754415061325,4.08723943,164.77,164.74,42.8]
[1754415061499,0.69,164.76,164.74,42.8]
[1754415062213,3.16763577,164.78,164.74,48.87011322]
[1754415062422,0.28432314,164.77,164.74,42.8]
[1754415062621,26.0,164.76,164.74,42.8]
[1754415062788,26.69,164.76,164.74,42.8]
[1754415064093,26.0,164.76,164.74,43.49]
[1754415064298,26.0,164.76,164.74,42.8]
[1754415064498,26.67,164.76,164.74,42.8]
[1754415064696,5.01393633,164.77,164.74,57.34330755]
[1754415064983,5.01393633,164.77,164.75,0.69]
[1754415065195,5.01393633,164.77,164.76,42.8]
[1754415065585,13.4673048,164.77,164.75,42.8]
[1754415065803,0.67,164.76,164.75,42.8]
[1754415065983,0.67,164.76,164.74,42.78]
[1754415066823,5.01393633,164.77,164.74,42.78]
[1754415066978,5.01393633,164.77,164.74,43.47]
[1754415067183,5.01393633,164.77,164.74,51.25336847]
[1754415067487,5.01393633,164.77,164.74,42.78]
[1754415067702,5.68393633,164.77,164.74,42.78]
[1754415067900,13.4673048,164.77,164.74,42.78]
[1754415068179,0.67,164.76,164.74,42.78]
[1754415068384,5.01393633,164.77,164.75,0.69]
[1754415068579,3.16763577,164.78,164.74,56.63344773]
[1754415068580,3.16763577,164.78,164.76,42.78]
[1754415069314,29.16763577,164.78,164.76,42.78]
[1754415069818,29.83763577,164.78,164.76,42.78]
[1754415070579,37.62100424,164.78,164.76,42.78]
[1754415071026,29.83763577,164.78,164.76,42.78]
[1754415071185,37.62100424,164.78,164.76,42.78]
[1754415071494,37.65100424,164.78,164.76,42.78]
[1754415072707,29.19763577,164.78,164.76,48.84942468]
[1754415073321,29.19763577,164.78,164.76,43.47]
[1754415073519,3.19763577,164.78,164.76,42.78]
[1754415073837,0.67,164.77,164.76,42.78]
[1754415074003,10.98100424,164.78,164.76,42.78]
[1754415074204,3.19763577,164.78,164.76,43.47]
[1754415074628,3.19763577,164.78,164.76,42.78]
[1754415074936,3.86763577,164.78,164.76,42.78]
[1754415075230,3.19763577,164.78,164.76,42.78]
[1754415075733,3.19763577,164.78,164.76,49.53940194]
[1754415076546,3.19763577,164.78,164.76,49.53938832]
[1754415076834,3.48195891,164.78,164.77,0.69]
[1754415077041,0.03,164.78,164.77,0.69]
[1754415078609,0.03,164.78,164.77,6.75906597]
[1754415079313,0.03,164.78,164.76,48.84933482]
[1754415079619,0.03,164.78,164.76,49.53933482]
[1754415079819,0.03,164.78,164.76,43.47]
[1754415080129,7.81336847,164.78,164.76,49.53942513]
[1754415080339,7.81336847,164.78,164.76,43.47]
[1754415081225,0.03,164.78,164.77,0.69]
[1754415084621,0.03,164.78,164.77,6.75906597]
[1754415086141,0.03,164.78,164.76,131.88]
[1754415086444,0.03,164.78,164.77,42.76]
[1754415086626,0.03,164.78,164.77,49.51906597]
[1754415088947,0.03,164.78,164.77,43.45]
[1754415089126,7.81336847,164.78,164.77,42.76]
[1754415089448,0.03,164.78,164.77,43.45]
[1754415090045,0.03,164.78,164.77,42.76]
[1754415090440,0.03,164.78,164.77,43.45]
[1754415090631,0.03,164.78,164.77,49.51906597]
[1754415090939,0.03,164.78,164.77,42.76]
[1754415091143,8.48336847,164.78,164.77,42.76]
[1754415091314,0.03,164.78,164.77,42.76]
[1754415091747,0.7,164.78,164.77,42.76]
[1754415093223,0.03,164.78,164.77,42.76]
[1754415095139,7.81336847,164.78,164.77,42.76]
[1754415095340,0.03,164.78,164.77,42.76]
[1754415096255,0.28432314,164.77,164.74,89.1]
[1754415096555,7.78336847,164.75,164.74,42.76]
[1754415096723,8.06769161,164.75,164.74,42.76]
[1754415097319,0.28432314,164.74,164.71,0.67]
[1754415097547,8.06769161,164.74,164.73,42.76]
[1754415097867,0.28432314,164.75,164.73,43.43]
[1754415098537,0.28432314,164.75,164.74,0.67]
[1754415098722,3.16560757,164.77,164.74,0.67]
[1754415098923,34.06769161,164.77,164.75,42.76]
[1754415099243,7.78336847,164.76,164.75,42.76]
[1754415099557,8.75769161,164.76,164.69,89.83]
[1754415099731,0.97432314,164.75,164.7,42.76]
[1754415100050,33.78336847,164.76,164.71,0.67]
[1754415100248,0.28432314,164.77,164.73,7.78336847]
[1754415100545,8.06769161,164.77,164.74,43.43]
[1754415101553,8.06769161,164.77,164.74,49.5001616]
[1754415101724,8.06769161,164.77,164.75,0.67]
[1754415102427,8.06769161,164.77,164.74,48.8301616]
[1754415102624,8.06769161,164.77,164.74,49.5001616]
[1754415102956,7.78336847,164.75,164.74,42.76]
[1754415103355,0.97432314,164.75,164.69,0.06]
[1754415103532,26.97432314,164.74,164.7,42.76]
[1754415103726,7.78336847,164.72,164.7,43.43]
[1754415103952,7.78336847,164.73,164.71,0.67]
[1754415105451,7.78336847,164.73,164.71,6.74126027]
[1754415106127,7.78336847,164.73,164.71,0.67]
[1754415106373,8.47336847,164.72,164.7,42.76]
[1754415106658,7.78336847,164.71,164.7,42.76]
[1754415106958,7.78336847,164.72,164.7,43.43]
[1754415107353,0.28432314,164.74,164.7,48.83142668]
[1754415107543,8.06769161,164.74,164.71,0.67]
[1754415107740,7.78336847,164.73,164.71,0.67]
[1754415107927,0.97432314,164.74,164.7,48.83156401]
[1754415108135,26.0,164.74,164.71,8.45336847]
[1754415108430,0.28432314,164.76,164.72,0.67]
[1754415108642,0.03,164.78,164.73,50.56336847]
[1754415108643,8.09769161,164.78,164.73,50.56336847]
[1754415108847,33.78336847,164.76,164.73,42.78]
[1754415109152,7.78336847,164.75,164.73,42.78]
[1754415109953,8.75769161,164.74,164.73,42.78]
[1754415110354,8.06769161,164.74,164.73,42.78]
[1754415111462,0.28432314,164.74,164.73,42.78]
[1754415112369,34.47336847,164.76,164.73,42.78]
[1754415112665,33.78336847,164.76,164.73,43.45]
[1754415113158,26.0,164.76,164.73,43.45]
[1754415113353,0.28432314,164.76,164.73,49.52051826]
[1754415113552,4.09030328,164.76,164.73,49.52051826]
[1754415114350,34.47336847,164.77,164.73,49.52051826]
[1754415114662,34.47336847,164.77,164.73,43.45]
[1754415114663,7.78336847,164.76,164.73,43.45]
[1754415115872,8.47336847,164.76,164.73,42.78]
[1754415116074,8.47336847,164.76,164.73,43.45]
[1754415116871,14.54281683,164.76,164.73,43.45]
[1754415117066,8.75769161,164.75,164.73,42.78]
[1754415117243,8.75769161,164.75,164.71,0.67]
[1754415117442,8.75769161,164.75,164.72,42.78]
[1754415117841,14.82751478,164.75,164.72,42.78]
[1754415118057,8.47336847,164.74,164.72,42.78]
[1754415118349,8.47336847,164.74,164.7,42.78]
[1754415118548,8.47336847,164.74,164.7,43.45]
[1754415118870,0.69,164.74,164.7,42.78]
[1754415119059,7.78336847,164.74,164.71,0.67]
[1754415119572,7.78336847,164.73,164.7,42.78]
[1754415119772,8.47336847,164.73,164.7,42.78]
[1754415119958,8.47336847,164.73,164.7,43.45]
[1754415120281,0.69,164.72,164.7,42.78]
[1754415120472,8.47336847,164.72,164.7,42.78]
[1754415120875,8.75769161,164.71,164.69,0.06]
[1754415121073,7.78336847,164.7,164.69,0.06]
[1754415121582,8.06769161,164.7,164.69,0.06]
[1754415121750,8.06769161,164.7,164.67,0.06]
[1754415121751,26.0,164.68,164.67,0.06]
[1754415121952,27.40599572,164.68,164.6,0.06]
[1754415122180,8.06769161,164.63,164.6,0.06]
[1754415122680,8.75769161,164.63,164.6,0.06]
[1754415122864,23.86390718,164.63,164.6,0.06]
[1754415123058,27.9486927,164.63,164.6,0.06]
[1754415123379,34.02291975,164.63,164.6,0.06]
[1754415123860,37.08806315,164.63,164.6,0.06]
[1754415124586,34.06769161,164.63,164.6,0.06]
[1754415124779,33.78336847,164.63,164.6,0.06]
[1754415124967,26.0,164.63,164.62,0.75]
[1754415125166,7.78336847,164.65,164.62,0.75]
[1754415125367,7.78336847,164.64,164.62,0.75]
[1754415127294,8.06769161,164.63,164.62,0.06]
[1754415127451,51.51769161,164.63,164.62,0.06]
[1754415127655,66.76606875,164.63,164.62,0.06]
[1754415128485,72.8402958,164.63,164.62,0.06]
[1754415129686,57.59191866,164.63,164.62,0.06]
[1754415130186,72.8402958,164.63,164.62,0.06]
[1754415131784,67.49112833,164.63,164.62,0.06]
[1754415131993,75.2744968,164.63,164.62,0.06]
[1754415133108,11.17189261,164.63,164.62,0.06]
[1754415133257,8.06769161,164.63,164.62,0.06]
[1754415133659,7.92553004,164.63,164.62,0.06]
[1754415134192,8.06769161,164.63,164.62,0.06]
[1754415134694,8.73769161,164.63,164.62,0.06]
[1754415134865,14.81191866,164.63,164.62,0.06]
[1754415136673,0.28432314,164.63,164.62,0.06]
[1754415136891,14.14191866,164.63,164.62,0.06]
[1754415137505,8.06769161,164.63,164.62,0.06]
[1754415137791,9.24583105,164.67,164.62,0.75]
[1754415137968,7.78336847,164.66,164.62,6.82446021]
[1754415138175,0.28432314,164.65,164.63,0.69]
[1754415138375,0.28432314,164.65,164.64,0.69]
[1754415138970,0.14216157,164.65,164.64,0.69]
[1754415139376,0.28432314,164.65,164.64,0.69]
[1754415141101,8.06769161,164.65,164.64,0.69]
[1754415141302,8.06769161,164.65,164.62,0.75]
[1754415141507,0.28432314,164.65,164.63,0.69]
[1754415141708,0.28432314,164.65,164.64,0.69]
[1754415143308,26.0,164.66,164.64,6.76373868]
[1754415143598,26.0,164.66,164.65,0.69]
[1754415144301,3.16751073,164.68,164.65,0.69]
[1754415144501,3.16751073,164.68,164.66,0.69]
[1754415145010,29.45183387,164.68,164.67,0.69]
[1754415145894,29.45183387,164.68,164.64,13.85709675]
[1754415146211,29.45183387,164.68,164.65,0.69]
[1754415147205,37.23520234,164.68,164.65,0.69]
[1754415147501,29.45183387,164.68,164.65,0.69]
[1754415147675,37.23520234,164.68,164.65,0.69]
[1754415148081,29.45183387,164.68,164.65,0.69]
[1754415148287,30.12183387,164.68,164.65,0.69]
[1754415148505,8.73769161,164.67,164.63,13.85746552]
[1754415148724,8.73769161,164.67,164.63,6.07409705]
[1754415149011,0.28432314,164.65,164.62,0.06]
[1754415149979,0.28432314,164.65,164.62,0.75]
[1754415151093,8.73769161,164.65,164.62,0.06]
[1754415152909,7.78336847,164.63,164.62,0.06]
[1754415153210,8.06769161,164.63,164.62,0.06]
[1754415153410,8.73769161,164.63,164.62,0.06]
[1754415153785,8.06769161,164.63,164.62,0.06]
[1754415154291,0.28432314,164.63,164.62,0.06]
[1754415154491,49.64357802,164.65,164.62,0.77]
[1754415154492,42.86,164.65,164.62,0.77]
[1754415154707,32.78297093,164.67,164.63,0.71]
[1754415154708,33.78336847,164.67,164.63,0.71]
[1754415155086,33.78336847,164.67,164.64,0.71]
[1754415155087,0.14216157,164.66,164.64,0.71]
[1754415155308,0.28432314,164.66,164.64,0.71]
[1754415155610,0.14216157,164.66,164.63,13.85742994]
[1754415155821,26.28432314,164.66,164.65,0.71]
[1754415156610,3.16751073,164.68,164.65,8.49336847]
[1754415156813,3.16751073,164.68,164.65,0.71]
[1754415157714,3.16751073,164.68,164.66,0.71]
[1754415158415,0.03,164.67,164.66,0.71]
[1754415159012,0.03,164.67,164.66,14.56648883]
[1754415159218,0.03,164.67,164.66,8.49336847]
[1754415161811,0.03,164.67,164.66,14.56648883]
[1754415168803,0.03,164.67,164.66,57.40648883]
[1754415169416,26.0,164.74,164.72,7.78336847]
[1754415170111,0.71,164.74,164.72,7.78336847]
[1754415172112,0.28432314,164.75,164.72,8.49336847]
[1754415172423,0.28432314,164.75,164.72,7.78336847]
[1754415172637,0.99432314,164.75,164.72,7.78336847]
[1754415172830,0.71,164.74,164.72,7.78336847]
[1754415173610,0.28432314,164.75,164.72,7.78336847]
[1754415173819,0.71,164.74,164.71,6.07112975]
[1754415174008,0.71,164.74,164.72,7.78336847]
[1754415174403,0.28432314,164.75,164.72,7.78336847]
[1754415174610,0.28432314,164.75,164.72,14.56418683]
[1754415174914,0.99432314,164.75,164.72,7.78336847]
[1754415176531,0.99432314,164.75,164.71,6.07126255]
[1754415176831,0.99432314,164.75,164.72,7.78336847]
[1754415177831,0.49432314,164.75,164.72,7.78336847]
[1754415178026,3.16578511,164.76,164.73,8.49336847]
[1754415178232,3.16578511,164.76,164.73,7.78336847]
[1754415178418,3.16578511,164.76,164.74,0.71]
[1754415178622,3.16578511,164.76,164.73,8.49336847]
[1754415178933,3.16578511,164.76,164.74,8.49336847]
[1754415179635,0.28432314,164.77,164.74,8.49336847]
[1754415180003,0.71,164.76,164.73,7.78336847]
[1754415180311,0.71,164.76,164.71,6.07127678]
[1754415180529,0.28432314,164.77,164.73,8.49336847]
[1754415181037,0.31432314,164.77,164.73,14.56364384]
[1754415181233,0.31432314,164.77,164.74,7.78336847]
[1754415181449,0.31432314,164.77,164.74,8.49336847]
[1754415182133,1.02432314,164.77,164.74,8.49336847]
[1754415182521,1.02432314,164.77,164.73,6.78027537]
[1754415182724,1.02432314,164.77,164.73,14.56364384]
[1754415182725,0.31432314,164.77,164.73,14.56364384]
[1754415183044,1.02432314,164.77,164.73,14.56364384]
[1754415183418,7.81336847,164.78,164.74,0.7]
[1754415183738,7.81336847,164.78,164.73,13.85364384]
[1754415183739,13.88210474,164.78,164.73,13.85364384]
[1754415183917,13.88210474,164.78,164.73,7.78336847]
[1754415184122,0.03,164.78,164.75,7.78336847]
[1754415184321,26.0,164.77,164.75,7.78336847]
[1754415184940,26.0,164.77,164.74,7.78336847]
[1754415185140,7.78336847,164.76,164.71,8.48336847]
[1754415185529,8.47336847,164.76,164.72,0.7]
[1754415185734,0.69,164.76,164.72,14.55404991]
[1754415186144,26.0,164.77,164.73,0.7]
[1754415186355,34.47336847,164.77,164.73,0.7]
[1754415186528,0.69,164.76,164.73,0.7]
[1754415186720,8.47336847,164.76,164.71,8.48336847]
[1754415187352,39.85244405,164.77,164.73,7.78336847]
[1754415187563,8.47336847,164.76,164.72,8.48336847]
[1754415188236,0.69,164.75,164.71,13.85448098]
[1754415188644,0.69,164.75,164.71,14.55448098]
[1754415189145,26.0,164.75,164.73,7.78336847]
[1754415189332,13.88217934,164.78,164.73,7.78336847]
[1754415189518,26.0,164.77,164.74,0.7]
[1754415189714,26.0,164.76,164.75,0.7]
[1754415191260,26.0,164.76,164.73,14.5538001]
[1754415191549,26.0,164.76,164.73,0.7]
[1754415192080,26.0,164.75,164.68,6.07210913]
[1754415192370,26.0,164.75,164.67,15.10621557]
[1754415192371,7.78336847,164.72,164.67,0.7]
[1754415192665,0.69,164.72,164.68,14.55568547]
[1754415193033,33.78336847,164.73,164.69,0.7]
[1754415193363,40.54410209,164.73,164.69,0.7]
[1754415193560,7.78336847,164.71,164.67,0.7]
[1754415193740,7.78336847,164.71,164.66,6.07300104]
[1754415193741,8.47336847,164.7,164.65,14.55675091]
[1754415194060,8.47336847,164.7,164.66,0.7]
[1754415194272,26.69,164.73,164.67,0.7]
[1754415194441,7.78336847,164.72,164.67,8.48336847]
[1754415194770,7.78336847,164.72,164.68,14.55560233]
[1754415194972,76.58336847,164.74,164.69,8.48336847]
[1754415195149,76.58336847,164.74,164.68,6.07223386]
[1754415195467,69.49,164.74,164.7,0.7]
[1754415195676,33.78336847,164.74,164.7,7.78336847]
[1754415195848,26.0,164.74,164.71,8.48336847]
[1754415196043,26.0,164.74,164.72,0.7]
[1754415196230,15.96837714,164.78,164.73,8.48336847]
[1754415196231,13.88216525,164.78,164.73,8.48336847]
[1754415196574,26.0,164.77,164.74,0.7]
[1754415196773,39.85259267,164.77,164.74,0.7]
[1754415196976,39.85259267,164.77,164.68,15.180957]
[1754415196977,7.78336847,164.75,164.7,8.48336847]
[1754415197272,26.0,164.75,164.68,0.7]
[1754415197426,8.47336847,164.74,164.7,0.7]
[1754415197626,26.0,164.75,164.71,0.7]
[1754415197866,33.78336847,164.75,164.71,0.7]
[1754415198156,0.69,164.76,164.71,8.48336847]
[1754415198353,34.47336847,164.76,164.72,0.7]
[1754415199189,26.0,164.75,164.73,0.7]
[1754415200659,39.8525317,164.77,164.73,0.7]
[1754415200863,26.0,164.77,164.73,8.48336847]
[1754415201053,33.78336847,164.77,164.74,0.7]
[1754415201361,33.78336847,164.77,164.73,7.78336847]
[1754415201656,34.50336847,164.77,164.73,8.54336847]
[1754415202540,26.72,164.77,164.73,8.54336847]